[Event "Lliga Catalana DH 2023"]
[Site "Catalonia"]
[Date "2023.03.18"]
[Round "9.6"]
[White "Fernandez Madrid, Carlos"]
[Black "Delisau Gil, Oriol"]
[Result "1/2-1/2"]
[ECO "D00"]
[WhiteElo "2066"]
[BlackElo "2223"]
[Annotator "TA"]
[PlyCount "156"]
[EventDate "2023.01.24"]
[EventType "team-tourn"]
[EventCountry "ESP"]
[SourceTitle "playchess.com"]
[Source "ChessBase"]
[SourceQuality "1"]
[TimeControl "40/5400+30:1800+30"]

{[%evp 9,156,-2,19,20,17,15,8,22,16,8,13,16,14,3,13,-7,-5,-5,-6,-6,-6,-5,0,0,0,-27,-34,-35,-28,-43,0,0,0,0,0,0,0,0,0,0,0,0,0,0,0,0,0,0,0,0,0,0,0,0,0,0,0,0,0,0,0,0,0,-1,0,0,0,0,0,0,0,0,0,-4,0,0,0,0,0,0,0,0,0,0,0,0,0,0,0,0,0,0,0,0,0,0,0,0,0,0,0,0,0,0,0,0,0,0,0,0,0,0,0,0,0,0,0,0,0,0,0,0,0,0,8,8,8,0,8,0,7,0,0,0,8,8,8,8,8,8,8,8,8,8,8,8,8,8,8]} 1. d4 {[%emt 0:00:08]} Nf6 {[%emt 0:00:17]} 2. Bf4 {[%emt 0:00:16]} g6 {[%emt 0:00:18]} 3. Nc3 {[%emt 0:00:15]} d5 {[%emt 0:03:46]} 4. Nf3 {[%emt 0:03:20]} Bg7 {[%emt 0:00:00]} 5. h4 {[%emt 0:03:54]} h6 {[%emt 0:02:04]} 6. Qd2 {[%emt 0:00:00] D00: 1 d4 d5: Unusual lines.} Ne4 {[%emt 0:01:11]} 7. Nxe4 {[%emt 0:00:46]} dxe4 {[%emt 0:00:18]} 8. Ne5 {[%emt 0:00:07]} Nd7 {[%emt 0:00:26] [#]} 9. O-O-O $146 {[%emt 0:11:43]} ({Predecessor:} 9. Qc3 Nxe5 10. Bxe5 Bxe5 11. dxe5 Be6 12. Rd1 Qc8 13. e3 O-O 14. Be2 h5 15. Qb4 {0-1 Msellek,I (2342)-Stepak,Y (2217) Titled Tuesday intern op 30th Mar blitz 2021 (2)}) 9... Nxe5 {[%emt 0:13:46]} 10. dxe5 {[%emt 0:05:02][%csl Gd1][%cal Rd2d8] [#]} Qxd2+ {[%emt 0:00:58]} 11. Rxd2 {[%emt 0:22:54]} g5 {[%emt 0:27:54]} 12. hxg5 {[%emt 0:00:00]} hxg5 {[%emt 0:00:45]} 13. Rxh8+ {[%emt 0:00:00]} Bxh8 {[%emt 0:00:25]} 14. Bxg5 {[%emt 0:00:00]} Bxe5 {[%emt 0:00:33]} 15. g3 {[%emt 0:00:00]} Be6 {[%emt 0:08:22]} 16. Bg2 {[%emt 0:00:00]} f5 {[%emt 0:01:15]} 17. g4 {[%emt 0:00:00] And now gxf5 would win.} Kf7 {[%emt 0:04:54]} 18. gxf5 {[%emt 0:00:00]} Bxf5 {[%emt 0:00:08]} 19. f4 {[%emt 0:00:00]} ({Don't blunder} 19. Rd5 $2 Ke6 20. Rxe5+ Kxe5 $19) 19... exf3 {[%emt 0:14:44]} 20. Bxf3 {[%emt 0:00:00] The position is equal.} c6 {[%emt 0:00:15] Prevents Rd5} 21. Be3 {[%emt 0:00:00]} Ke6 {[%emt 0:03:06]} 22. Rd1 {[%emt 0:00:00]} a6 {[%emt 0:03:16]} 23. Rh1 {[%emt 0:00:00]} Rh8 {[%emt 0:04:17]} 24. Rxh8 {[%emt 0:00:00]} Bxh8 $11 {[%emt 0:00:16][%mdl 4096] Endgame KBB-KBB} 25. c3 {[%emt 0:00:00]} Bh3 {[%emt 0:00:34]} 26. Bg5 {[%emt 0:02:01]} Bf6 {[%emt 0:05:02]} 27. Bf4 {[%emt 0:00:30]} Kf5 {[%emt 0:00:13]} 28. Be3 {[%emt 0:01:29]} e5 {[%emt 0:02:17]} 29. Kd2 {[%emt 0:00:18]} e4 {[%emt 0:01:46]} 30. Bh5 {[%emt 0:02:13]} Be5 {[%emt 0:00:20]} 31. Bf7 {[%emt 0:00:44]} Kf6 {[%emt 0:00:18]} 32. Bb3 {[%emt 0:00:25]} Be6 {[%emt 0:00:44]} 33. Bc2 {[%emt 0:00:38]} Kf5 {[%emt 0:00:29]} 34. a3 {[%emt 0:00:25]} b5 {[%emt 0:00:57]} 35. Bh6 {[%emt 0:02:53]} Bd5 {[%emt 0:00:05]} 36. e3 {[%emt 0:00:28]} Bg3 {[%emt 0:00:14]} 37. Bf8 {[%emt 0:00:39]} Bh4 {[%emt 0:01:30]} 38. Bd1 {[%emt 0:00:07]} Bf7 {[%emt 0:00:15]} 39. Bc5 {[%emt 0:00:24]} Bg5 {[%emt 0:00:45]} 40. Bb6 {[%emt 0:00:11]} Be7 {[%emt 0:00:27]} 41. Be2 {[%emt 0:30:45]} Bd6 {[%emt 0:30:10]} 42. Bd8 {[%emt 0:00:08]} Be5 {[%emt 0:00:35]} 43. Bb6 {[%emt 0:00:12]} Bf6 {[%emt 0:00:31]} 44. Bc5 {[%emt 0:00:20]} Kg5 {[%emt 0:00:12]} 45. Bd6 {[%emt 0:01:26]} Bh5 {[%emt 0:00:18]} 46. Bf4+ {[%emt 0:00:29]} Kg6 {[%emt 0:00:19]} 47. Bf1 {[%emt 0:00:07]} Kf5 {[%emt 0:00:11]} 48. Bh3+ {[%emt 0:00:26]} Bg4 {[%emt 0:00:02]} 49. Bg2 {[%emt 0:00:12]} Bh4 {[%emt 0:00:08]} 50. Bf1 {[%emt 0:00:28]} Ke6 {[%emt 0:00:58]} 51. a4 {[%emt 0:01:00]} Kd5 {[%emt 0:00:44]} 52. axb5 {[%emt 0:01:54]} axb5 {[%emt 0:00:57]} 53. b3 {[%emt 0:00:18]} Bf6 {[%emt 0:00:37]} 54. Bh6 {[%emt 0:00:40]} Be7 {[%emt 0:01:39]} 55. Bg7 {[%emt 0:00:37]} Kd6 {[%emt 0:00:45]} 56. Bh6 {[%emt 0:00:37]} Bd7 {[%emt 0:00:36]} 57. Bf4+ {[%emt 0:00:26]} Kc5 {[%emt 0:00:05]} 58. Be5 {[%emt 0:00:19]} Kd5 {[%emt 0:00:21]} 59. Bf4 {[%emt 0:00:16]} Bf6 {[%emt 0:00:26]} 60. Be2 $1 {[%emt 0:00:41]} Be6 {[%emt 0:00:34]} 61. Bd1 {[%emt 0:00:35]} c5 {[%emt 0:00:24]} 62. b4 {[%emt 0:00:35][%cal Bb3b4,Bb4c5,Bc5c6,Bc6c7][%mdl 32]} Kc4 {[%emt 0:00:42][%csl LRb4,LRc3]} 63. bxc5 $1 {[%emt 0:00:26]} Bxc3+ {[%emt 0:00:08]} 64. Kc2 {[%emt 0:00:22]} b4 {[%emt 0:00:36] Strongly threatening ...b3+.} 65. c6 {[%emt 0:00:10]} Kd5 {[%emt 0:01:09]} 66. c7 {[%emt 0:00:30]} Kc6 {[%emt 0:00:41]} 67. Be2 {[%emt 0:00:18] Ba6 would be deadly.} Kb7 {[%emt 0:00:20] Prevents Ba6+} 68. Bb5 {[%emt 0:00:38]} Be1 {[%emt 0:00:14]} 69. Ba4 {[%emt 0:00:14]} Bh4 {[%emt 0:00:34]} 70. Bb3 {[%emt 0:00:51]} Bxb3+ {[%emt 0:00:23]} 71. Kxb3 {[%emt 0:00:05] KB-KB} Be7 {[%emt 0:00:07]} 72. Kc4 {[%emt 0:00:27]} Kc8 {[%emt 0:01:10]} 73. Be5 {[%emt 0:00:55]} Kd7 {[%emt 0:00:11]} 74. Kd5 {[%emt 0:00:20]} b3 {[%emt 0:00:21]} 75. Kxe4 {[%emt 0:00:15]} Bc5 {[%emt 0:00:47]} 76. Kd3 {[%emt 0:00:21]} Bxe3 {[%emt 0:00:17]} 77. Kxe3 {[%emt 0:00:07] Threatening mate with Kd2.} b2 $1 {[%emt 0:00:02][%mdl 64] [#] Deflection} 78. Bxb2 {[%emt 0:00:03] White threatens Be5 and mate.} Kxc7 {[%emt 0:00:04] Weighted Error Value: White=0.02 (flawless) /Black=0.02 (flawless)} 1/2-1/2

[Event "Lliga Catalana DH 2023"]
[Site "Catalonia"]
[Date "2023.03.18"]
[Round "9.7"]
[White "Castelltort Fernandez, Antonio"]
[Black "Fernandez Serrano, Pau"]
[Result "1/2-1/2"]
[ECO "B06"]
[WhiteElo "2208"]
[BlackElo "2075"]
[Annotator "TA"]
[PlyCount "142"]
[EventDate "2023.01.24"]
[EventType "team-tourn"]
[EventCountry "ESP"]
[SourceTitle "playchess.com"]
[Source "ChessBase"]
[SourceQuality "1"]
[TimeControl "40/5400+30:1800+30"]

{[%evp 9,142,29,31,29,32,32,35,39,50,58,63,0,15,-7,59,-14,-5,-14,-2,-46,-45,-45,-50,-50,-9,-12,37,-82,-70,-72,-69,-68,-67,-146,-116,-132,-76,-70,-68,-72,-40,-97,-49,-68,-50,-61,-26,-41,-39,-30,-31,-52,-54,-54,-37,-54,-51,-112,-79,-79,-22,-82,-72,-76,-51,-96,-96,-96,-96,-96,-96,-96,-96,-96,-96,-103,-103,-103,-103,-103,-103,-103,0,-103,0,-103,-103,-103,-103,-103,-103,-103,-103,-103,-45,-98,-93,-103,-103,-103,-97,-112,-112,-132,-103,-103,-91,-103,0,-103,-103,-103,-96,-108,0,0,-2,-78,-91,-100,0,-3,0,0,0,0,0,0,0,0,0,0,0,0,0]} 1. e4 {[%emt 0:00:08]} g6 {[%emt 0:00:04]} 2. d4 {[%emt 0:00:13]} Bg7 {[%emt 0:00:04]} 3. Nf3 {[%emt 0:00:20]} d6 {[%emt 0:00:04]} 4. h3 {[%emt 0:00:29]} Nd7 {[%emt 0:00:19]} 5. Nc3 {[%emt 0:00:45]} a6 {[%emt 0:00:06]} 6. a4 {[%emt 0:01:02] B06: Modern Defence.} b6 {[%emt 0:00:04]} 7. Bc4 {[%emt 0:01:41][%cal Oc4f7] [#] Threatens to win with Bxf7+!} e6 {[%emt 0:00:04]} 8. O-O {[%emt 0:00:52] White is slightly better.} h6 {[%emt 0:01:12]} 9. Be3 {[%emt 0:03:39]} Bb7 {[%emt 0:00:09] [#]} 10. Ne1 $146 {[%emt 0:03:43] White is more active.} (10. Qd2 $14) ({Predecessor:} 10. Re1 Ne7 11. Bd3 O-O 12. Qd2 Kh7 13. Ne2 e5 14. dxe5 dxe5 15. Nc3 f5 16. Qe2 {1-0 Inozemtsev,S (2312)-Tsydypov,Z (2520) RUS-ch Eurasia Cup op 2018 (8)}) 10... Ngf6 {[%emt 0:02:45]} 11. d5 {[%emt 0:03:32]} e5 {[%emt 0:03:18]} (11... Ne5 $11 12. Bb3 exd5 13. exd5 O-O) 12. f4 {[%emt 0:02:53]} (12. Qd2 $14) 12... exf4 $11 {[%emt 0:00:35]} 13. Bxf4 {[%emt 0:02:10]} O-O {[%emt 0:00:12] Threatening ...Qe7.} 14. Nd3 {[%emt 0:01:30]} Nh5 {[%emt 0:07:51]} (14... Re8 $5 {[%cal Rf6e4]}) 15. Bh2 {[%emt 0:13:49]} Qg5 {[%emt 0:28:12]} (15... Qh4 {simplifies} 16. Qe1 Qxe1 17. Raxe1 Rae8) 16. Qf3 {[%emt 0:15:30]} Bd4+ {[%emt 0:17:10]} (16... Qf6 {simplifies} 17. Qxf6 Bxf6 18. Rae1 Rfe8) 17. Kh1 {[%emt 0:00:37]} Ne5 {[%emt 0:00:59]} (17... Be5 $11) 18. Bxe5 {[%emt 0:13:36]} (18. Nxe5 $14 {was forced to keep a grip.} dxe5 19. Rae1) 18... Bxe5 $17 {[%emt 0:01:58]} 19. Ne2 {[%emt 0:00:17]} Bg7 {[%emt 0:04:06]} 20. g4 {[%emt 0:06:22]} Nf6 {[%emt 0:00:14]} 21. Ng3 {[%emt 0:02:36]} (21. Nef4 $15) 21... Nd7 {[%emt 0:03:43]} 22. Rg1 {[%emt 0:03:03]} Ne5 {[%emt 0:03:09]} (22... Qh4 $142 {[%cal Rh4h3]} 23. Qg2 Rae8) 23. Nxe5 {[%emt 0:02:13]} Bxe5 {[%emt 0:00:02]} (23... dxe5 24. Ne2 $11) 24. c3 {[%emt 0:00:38][%cal Og3f5]} Kh7 {[%emt 0:01:06]} ({Of course not} 24... Qd2 $6 25. Rg2 Qf4 26. Qxf4 Bxf4 27. Ne2 $11) (24... Qh4 $5 25. Nf1 Bc8 $15) 25. Raf1 {[%emt 0:01:25]} (25. Nf1 $15) 25... Rae8 {[%emt 0:05:42]} ({Black should try} 25... Bc8 $17 26. Ne2 Qh4) 26. Ne2 {[%emt 0:01:51]} Bc8 {[%emt 0:02:00]} 27. Nf4 {[%emt 0:02:15]} Qf6 {[%emt 0:08:51]} (27... Kg7 {with more complications.} 28. Ng2 Qe7 29. Rf2 Qd7) 28. Nd3 {[%emt 0:03:55]} Qxf3+ {[%emt 0:00:23]} 29. Rxf3 {[%emt 0:00:06]} Bg7 {[%emt 0:00:05]} 30. Nf2 {[%emt 0:00:12]} Re5 {[%emt 0:01:27]} 31. Bd3 {[%emt 0:00:41]} h5 {[%emt 0:00:26]} 32. gxh5 {[%emt 0:03:32]} Rxh5 {[%emt 0:00:24]} 33. Ng4 {[%emt 0:00:28]} (33. a5 $15) 33... Be5 {[%emt 0:01:48]} 34. Nxe5 {[%emt 0:00:26]} Rxe5 {[%emt 0:00:04]} (34... dxe5 $17 35. Kh2 Kg7) 35. Rgg3 {[%emt 0:01:08]} (35. h4 $11 {remains equal.}) 35... Kg7 {[%emt 0:00:10]} 36. Kg2 {[%emt 0:00:21]} Bd7 {[%emt 0:00:58]} 37. Bc2 {[%emt 0:01:05]} Rh8 {[%emt 0:00:28]} 38. Rf4 {[%emt 0:00:44]} Reh5 {[%emt 0:00:46]} 39. Rff3 {[%emt 0:02:33]} Rh4 {[%emt 0:00:27]} 40. b3 {[%emt 0:00:44]} R8h5 {[%emt 0:00:40]} 41. Bd3 {[%emt 0:30:28]} a5 {[%emt 0:30:14]} 42. Re3 {[%emt 0:00:33]} Re5 {[%emt 0:00:38]} 43. Rgf3 {[%emt 0:00:41]} Rg5+ {[%emt 0:00:20]} 44. Kh2 {[%emt 0:00:36]} Rgh5 {[%emt 0:00:41]} 45. Kg2 {[%emt 0:00:12]} Rg5+ {[%emt 0:00:36]} 46. Kh2 $1 {[%emt 0:00:07]} Rgh5 {[%emt 0:00:33]} 47. Kg2 {[%emt 0:00:08]} Rh8 {[%emt 0:01:56]} 48. Rg3 {[%emt 0:00:17]} Re8 {[%emt 0:00:07]} 49. Kf2 {[%emt 0:00:16]} Re5 {[%emt 0:00:25]} 50. Kg2 {[%emt 0:00:09]} Kf8 {[%emt 0:01:01]} 51. Ref3 {[%emt 0:00:21]} Reh5 {[%emt 0:00:31]} (51... Ke7 $17) 52. Re3 {[%emt 0:00:48]} ({Better is} 52. Rxg6 $15 Bxh3+ 53. Kg3) 52... Ke7 {[%emt 0:00:17]} 53. Rgf3 {[%emt 0:00:11]} Rg5+ {[%emt 0:00:31]} 54. Kh2 {[%emt 0:00:09]} Bc8 {[%emt 0:00:47]} 55. Bf1 {[%emt 0:00:42]} Re5 {[%emt 0:00:39]} 56. Bd3 {[%emt 0:00:07]} Bd7 {[%emt 0:01:31]} 57. Kg2 {[%emt 0:00:08]} Reh5 {[%emt 0:00:17]} 58. Bf1 {[%emt 0:00:19]} Re5 {[%emt 0:01:04]} 59. Bd3 {[%emt 0:00:06]} g5 {[%emt 0:00:05]} 60. Rg3 {[%emt 0:00:26]} f6 {[%emt 0:00:46]} 61. Ref3 {[%emt 0:00:28]} g4 {[%emt 0:00:26]} (61... Be8 $17 {White should prevent ...Bg6.} 62. Rf5 c6) 62. hxg4 $11 {[%emt 0:01:15]} Bxg4 {[%emt 0:00:56]} 63. Rf4 {[%emt 0:02:05]} (63. Rf1 $11) 63... Rg5 $17 {[%emt 0:01:17] [#] ...Bh3+ would be deadly.} 64. Rf2 {[%emt 0:04:56]} Bh3+ {[%emt 0:00:57]} (64... Bd1 $17 65. Rb2 Rgh5) 65. Kf3 $11 {[%emt 0:00:18] The position is equal.} Bd7 {[%emt 0:00:29] aiming for ...Rxg3+.} 66. Rfg2 {[%emt 0:00:25]} Rhh5 {[%emt 0:00:17]} 67. Kf4 {[%emt 0:00:28][%cal Rg3g5]} Rh4+ {[%emt 0:00:11]} 68. Kf3 {[%emt 0:00:11]} Rhh5 {[%emt 0:00:09]} 69. Kf4 {[%emt 0:00:06][%cal Rg3g5]} Rh4+ {[%emt 0:00:25]} 70. Kf3 {[%emt 0:00:06]} Rhh5 {[%emt 0:00:01]} 71. Kf4 {[%emt 0:00:40][%cal Rg3g5]} Rh4+ {[%emt 0:00:11] Weighted Error Value: White=0.18 (very precise) /Black=0.20 (precise)} 1/2-1/2

[Event "Lliga Catalana DH 2023"]
[Site "Catalonia"]
[Date "2023.03.18"]
[Round "9.8"]
[White "Dominguez Laguna, Eduard"]
[Black "Casas Douton, Domingo"]
[Result "1/2-1/2"]
[ECO "D10"]
[WhiteElo "1959"]
[BlackElo "2114"]
[Annotator "TA"]
[PlyCount "70"]
[EventDate "2023.01.24"]
[EventType "team-tourn"]
[EventCountry "ESP"]
[SourceTitle "playchess.com"]
[Source "ChessBase"]
[SourceQuality "1"]
[TimeControl "40/5400+30:1800+30"]

{[%evp 9,70,16,30,29,37,36,40,18,22,9,42,41,45,50,46,55,60,43,61,28,31,27,55,36,38,38,71,56,58,55,58,65,78,50,127,94,149,99,98,96,94,97,109,0,0,0,26,22,30,23,79,5,0,0,0,0,4,0,16,0,2,0,0]} 1. d4 {[%emt 0:00:03]} d5 {[%emt 0:00:26]} 2. c4 {[%emt 0:00:11]} c6 {[%emt 0:00:08]} 3. cxd5 {[%emt 0:00:08]} cxd5 {[%emt 0:00:02]} 4. Bf4 {[%emt 0:00:10]} Nc6 {[%emt 0:01:39]} 5. e3 {[%emt 0:00:17]} e6 {[%emt 0:07:56]} 6. Nc3 {[%emt 0:00:23] D10: Slav Defence: 3 cxd5 (without early Nf3) and 3 Nc3.} Bd6 $1 {[%emt 0:03:18] 6...Bd6 scores better than 6...Nf6.} 7. Bxd6 {[%emt 0:00:17]} Qxd6 {[%emt 0:00:03]} 8. f4 {[%emt 0:02:27] White is slightly better.} Bd7 {[%emt 0:10:23]} 9. Nf3 {[%emt 0:04:39]} Nf6 {[%emt 0:06:51]} 10. Bd3 {[%emt 0:00:29]} a6 {[%emt 0:02:57]} 11. O-O {[%emt 0:01:29]} Ne7 {[%emt 0:10:43]} 12. Ne5 {[%emt 0:06:29]} Nf5 {[%emt 0:03:59]} 13. Qf3 {[%emt 0:08:50] Strongly threatening g4.} h5 $1 {[%emt 0:02:59] [#]} 14. Rfe1 $146 {[%emt 0:04:41]} ({Predecessor:} 14. Rac1 g6 15. b3 Rc8 16. Rc2 Ng4 17. Re1 Nxe5 18. fxe5 Qe7 19. Rec1 Bc6 20. Na4 {1-0 Potapova,M (2270)-Foisor,S (2228) Speed Chess (Women) Q5 blitz 2020 (8)}) 14... Kf8 {[%emt 0:07:15]} 15. Rac1 {[%emt 0:04:18]} Rd8 {[%emt 0:11:29]} 16. g3 {[%emt 0:07:45]} Be8 {[%emt 0:05:59]} 17. h3 {[%emt 0:11:07][%cal Bh2h3,Bh3g4,Bg4g5][%mdl 32]} Qb6 {[%emt 0:10:17]} 18. Rc2 {[%emt 0:08:08]} Nd6 {[%emt 0:03:20]} 19. g4 {[%emt 0:03:02]} hxg4 {[%emt 0:05:10]} 20. hxg4 {[%emt 0:00:19]} g6 {[%emt 0:04:32]} 21. Ree2 {[%emt 0:03:10]} (21. g5 {simplifies} Nh5 22. Qg4 Nf5 23. Bxf5 exf5 24. Qf3) 21... Ke7 {[%emt 0:00:39]} (21... Bb5 $1 $14) 22. g5 {[%emt 0:14:18]} Nfe4 {[%emt 0:00:07]} (22... Nd7 $142) 23. Nxe4 {[%emt 0:02:08]} ({Better is} 23. Bxe4 dxe4 24. Nxe4) 23... dxe4 $16 {[%emt 0:00:06]} 24. Bxe4 {[%emt 0:00:28]} Bb5 {[%emt 0:00:25]} 25. Red2 {[%emt 0:02:30][%cal Oe4g6]} Rc8 {[%emt 0:00:28]} 26. Bd3 {[%emt 0:06:38] White is more active.} (26. Bxg6 $16 {[%cal Of4f5] aiming for f5!} Qa5 27. Qd1 (27. Nxf7 $2 Rxc2 {[%mdl 64] Remove Defender} 28. Bxc2 Qxd2 $19) 27... Rxc2 28. Bxc2 (28. Rxc2 Rh3 $14) (28. Qxc2 Rc8 $11)) 26... Rxc2 $11 {[%emt 0:01:07]} 27. Rxc2 {[%emt 0:00:58]} Qa5 {[%emt 0:01:09] [#] ...Qe1+ would be deadly.} 28. Bxb5 {[%emt 0:02:26]} axb5 {[%emt 0:00:00]} 29. Qd1 {[%emt 0:03:49] Repels Qe1+. Threatens to win with Qc1.} b4 {[%emt 0:00:39]} (29... Qxa2 $11 {keeps the balance.} 30. b3 Qa5) 30. Qc1 {[%emt 0:01:15]} ({White should play} 30. b3 $16) 30... Qd5 {[%emt 0:00:26] The position is equal.} 31. Rh2 {[%emt 0:00:41] [#] Dodges Qh1+. White threatens Qc7+ and mate.} Rc8 {[%emt 0:00:01] Prevents Qc7+.} 32. Rc2 {[%emt 0:00:38]} Rh8 {[%emt 0:00:04]} 33. Rh2 {[%emt 0:00:32] Inhibits Qh1+. Threatening mate with Qc7+.} Rc8 {[%emt 0:00:02] Dodges Qc7+} 34. Rc2 {[%emt 0:01:14]} Rh8 {[%emt 0:00:02] ( -> ...Qh1+)} 35. Rh2 {[%emt 0:00:16] Inhibits Qh1+. White wants to mate with Qc7+.} Rc8 {[%emt 0:00:23] Dodges Qc7+.   Weighted Error Value: White=0.17 (very precise) /Black=0.14 (very precise)} 1/2-1/2

[Event "Lliga Catalana DH 2023"]
[Site "Catalonia"]
[Date "2023.03.18"]
[Round "9.9"]
[White "Vehi Bach, Victor Manuel"]
[Black "Gonzalez Escudero, Josep"]
[Result "1-0"]
[ECO "C13"]
[WhiteElo "2242"]
[BlackElo "1955"]
[Annotator "TA"]
[PlyCount "121"]
[EventDate "2023.01.24"]
[EventType "team-tourn"]
[EventCountry "ESP"]
[SourceTitle "playchess.com"]
[Source "ChessBase"]
[SourceQuality "1"]
[TimeControl "40/5400+30:1800+30"]

{[%evp 21,121,33,27,33,40,51,49,20,114,109,98,81,102,108,101,13,35,34,156,147,166,183,170,167,178,177,174,169,173,177,208,202,246,168,297,299,291,208,217,203,209,210,211,208,212,200,225,218,218,167,240,191,283,233,306,276,302,267,260,232,294,253,347,300,309,330,323,306,335,277,463,327,312,311,330,320,328,328,323,324,328,314,313,306,289,273,475,420,559,552,551,504,597,552,745,493,776,742,720,611,645,557]} 1. e4 e6 2. d4 d5 3. Nc3 Nf6 4. Bg5 dxe4 5. Nxe4 Be7 6. Bxf6 gxf6 7. Nf3 b6 8. Bd3 Bb7 9. Qe2 c6 10. O-O Qc7 11. c4 Nd7 12. Rac1 {C13: French: Classical System: 4 Bg5 Be7, Alekhine-Chatard Attack.} c5 {[#]} 13. d5 O-O-O 14. Nc3 {[#] White is slightly better.} Nf8 $146 (14... Qf4 $11 {remains equal.}) ({Predecessor:} 14... Qf4 15. Rfe1 Bd6 16. g3 Qg4 17. Nd2 Qxe2 18. Rxe2 Nf8 19. f4 h5 20. h4 Rg8 {1-0 Mercadal Benejam,J (2448)-Bernad Suarez,A (2118) ESP-chT1 email 7th 2008 [1]}) 15. Nb5 $16 {[%csl LRa7,LRc7]} Qb8 16. Rfe1 {[%cal Rd5e6] White has more active pieces.} a6 17. Nc3 Qf4 18. Qe4 (18. g3 $16 Rg8 19. Ra1) 18... Qxe4 19. Bxe4 f5 {[#] White now steadily converts the win.} ({Better is} 19... Rg8 $14) 20. Bxf5 $1 {[%mdl 512]} Bf6 {Black is weak on the light squares} (20... Rg8 21. dxe6) 21. dxe6 fxe6 22. Be4 (22. Bxe6+ Nxe6 23. Rxe6 Bxc3) 22... h6 23. Bxb7+ Kxb7 24. b3 Rg8 25. g3 Rg6 26. Ne4 Bd4 27. Kg2 Nh7 (27... e5 {was called for.} 28. Nc3 Nd7) 28. Rcd1 $18 {[%cal Bc1d1,Bd1d3,Bd3f3,Bf3f5][%mdl 32]} Kc7 29. Rd3 e5 30. Nh4 {A dynamic duo of knights.} Re6 31. Rf3 Ng5 32. Rf5 Nxe4 33. Rxe4 Bc3 34. Nf3 Rd1 35. Rf7+ ({Don't play} 35. Nxe5 Rd2 36. Kf3 Rxa2) 35... Kd6 (35... Rd7 $142 36. Rf5 b5) 36. Re2 Bd4 (36... Kc6 $142 37. Nh4 Rd7) 37. Nd2 Ra1 38. Ne4+ Kc6 39. Ra7 a5 40. Rf7 Rd1 41. h4 {[%cal Bh2h4,Bh4h5][%mdl 32]} Rd3 42. Rf3 Rd1 43. a4 Ba1 44. h5 Rd7 45. Rd2 {aiming for Rxd7.} Bd4 $2 (45... Rd4 {was necessary.}) 46. Rf6 Rxf6 47. Nxf6 {[%mdl 4096] Endgame KRB-KRN} Rf7 48. Ng4 {[%cal Od2d4] Black must now prevent Rxd4!} Rf5 49. Nxh6 Rxh5 50. Ng4 Rf5 51. Re2 Kd6 52. f3 Rf7 53. Nf2 Bxf2 $2 (53... Rd7 {might work better.} 54. Ne4+ Ke7) 54. Kxf2 {KR-KR} Rf5 55. Rd2+ {White is clearly winning.} Ke6 56. Rd8 {Prevents Rf8} Rf6 57. Ke3 Kf5 58. Rb8 Kg5 (58... Rd6 $142 59. Rb7 Kg6) 59. Ke4 Re6 60. Rf8 Rd6 61. Rf5+ {Weighted Error Value: White=0.23 (precise) /Black=0.42} 1-0

[Event "Lliga Catalana DH 2023"]
[Site "Catalonia"]
[Date "2023.03.18"]
[Round "9.9"]
[White "Vehi Bach, Victor Manuel"]
[Black "Gonzalez Garcia, Jose"]
[Result "*"]
[WhiteElo "2242"]
[BlackElo "2450"]
[Annotator "TA"]
[PlyCount "37"]
[EventDate "2023.01.24"]
[EventType "team-tourn"]
[EventCountry "ESP"]
[SourceTitle "playchess.com"]
[Source "ChessBase"]
[SourceQuality "1"]
[TimeControl "40/5400+30:1800+30"]

{[%evp 9,10,15,22]} 1. e4 e6 2. d4 d5 3. Nc3 Nf6 4. Bg5 dxe4 5. Nxe4 Be7 {[#]} {Predecessor:} 6. Nxf6+ $146 {C13: French: Classical System: 4 Bg5 Be7, Alekhine-Chatard Attack.} Bxf6 7. Bxf6 Qxf6 8. Nf3 O-O 9. Qd3 c5 10. O-O-O Rd8 11. Qe3 Nc6 12. Bd3 cxd4 13. Qe4 g6 14. Rhe1 Bd7 15. Kb1 Be8 16. a3 Rd5 17. h4 Rad8 18. g4 b5 19. g5 {0-1 Chigaev,M (2632)-Kramnik,V (2753) Titled Tuesday intern op 28th Feb Late blitz 2023 (10)} *